fUSD/lending_fUSD_20250723
["ID","MTS","AMOUNT","RATE_DAILY","PERIOD"]
[374142834,1753229449876,-151.0,0.00029701,7]
[374142836,1753229449885,-151.0,0.00029701,7]
[374142838,1753229449895,-150.0,0.00029701,2]
[374142840,1753229449905,-339.0,0.00029707,2]
[374142842,1753229449915,-151.0,0.00029712,7]
[374142844,1753229449925,-151.0,0.00029712,7]
[374142846,1753229449935,-151.0,0.00029712,7]
[374142848,1753229449944,-151.0,0.00029712,7]
[374142850,1753229449953,-277.057802,0.00029712,7]
[374142852,1753229449963,-277.057802,0.00029712,7]
[374142854,1753229449973,-151.0,0.00029712,7]
[374142856,1753229449982,-151.0,0.00029712,7]
[374142858,1753229449992,-152.19017,0.00029712,7]
[374142860,1753229450002,-152.19017,0.00029712,7]
[374142862,1753229450011,-151.0,0.00029712,7]
[374142864,1753229450021,-703.932894,0.00029712,7]
[374142866,1753229450031,-151.0,0.00029712,7]
[374142868,1753229450042,-225.255416,0.00029712,7]
[374142870,1753229450051,-225.255416,0.00029712,7]
[374142872,1753229450061,-168.0,0.0002972,2]
[374142874,1753229450071,-239.84119403,0.00029729,2]
[374142877,1753229450081,-150.0,0.00029731,2]
[374142879,1753229450091,-3690.72583268,0.00029747,2]
[374142881,1753229450100,-956.3282493,0.0002976,2]
[374142883,1753229450109,-150.0,0.00029765,2]
[374142885,1753229450119,-150.0,0.00029775,2]
[374142887,1753229450129,-150.0,0.00029781,2]
[374142889,1753229450138,-2800.0,0.000298,10]
[374142891,1753229450148,-295.93628444,0.00029808,15]
[374142893,1753229450157,-150.0,0.00029811,2]
[374142895,1753229450167,-815.42,0.00029836,2]
[374142897,1753229450177,-465.43,0.00029836,2]
[374142899,1753229450186,-200.0,0.0002986,2]
[374142901,1753229450196,-168.0,0.00029864,2]
[374142903,1753229450206,-151.0,0.00029864,7]
[374142905,1753229450216,-2584.319933,0.00029864,7]
[374142907,1753229450225,-2584.319933,0.00029864,7]
[374142909,1753229450235,-167.253945,0.00029864,7]
[374142911,1753229450244,-167.253945,0.00029864,7]
[374142913,1753229450254,-150.0,0.00029865,2]
[374142915,1753229450267,-500.0,0.00029865,2]
[374142917,1753229450277,-150.0,0.00029865,2]
[374142919,1753229450288,-150.0,0.00029865,2]
[374142921,1753229450298,-150.0,0.00029865,2]
[374142923,1753229450309,-500.0,0.00029865,2]
[374142925,1753229450319,-243.23330792,0.00029865,2]
[374142927,1753229450329,-500.0,0.00029865,2]
[374142928,1753229450341,-150.0,0.00029865,2]
[374142929,1753229450351,-1735.0,0.00029865,2]
[374142930,1753229450361,-150.0,0.00029865,2]
[374142931,1753229450370,-150.0,0.00029865,2]
[374142932,1753229450379,-585.0,0.00029865,2]
[374142933,1753229450389,-150.0,0.00029865,2]
[374142934,1753229450398,-500.0,0.00029865,2]
[374142936,1753229450407,-150.0,0.00029865,2]
[374142937,1753229450417,-150.69874847,0.00029865,2]
[374142938,1753229450427,-150.0,0.00029865,2]
[374142940,1753229450436,-151.83705436,0.00029865,2]
[374142942,1753229450445,-500.0,0.00029865,2]
[374142944,1753229450454,-150.0,0.00029865,2]
[374142946,1753229450464,-500.0,0.00029865,2]
[374142947,1753229450473,-150.0,0.00029865,2]
[374142948,1753229450483,-150.1273409,0.00029865,2]
[374142949,1753229450492,-500.0,0.00029865,2]
[374142950,1753229450502,-500.0,0.00029865,2]
[374142951,1753229450511,-150.0,0.00029865,2]
[374142952,1753229450521,-150.0,0.00029865,2]
[374142953,1753229450531,-500.0,0.00029865,2]
[374142955,1753229450542,-500.0,0.00029865,2]
[374142957,1753229450552,-500.0,0.00029865,2]
[374142959,1753229450562,-150.0,0.00029865,2]
[374142961,1753229450571,-386.52657845,0.00029871,5]
[374142963,1753229450581,-1500.0,0.00029871,5]
[374142965,1753229450591,-500.0,0.00029871,5]
[374142967,1753229450600,-150.0,0.00029871,2]
[374142969,1753229450610,-500.0,0.00029896,5]
[374142971,1753229450620,-151.0,0.00029896,7]
[374142972,1753229450630,-440.133413,0.00029896,7]
[374142973,1753229450640,-440.133413,0.00029896,7]
[374142974,1753229450649,-151.0,0.00029898,7]
[374142975,1753229450659,-151.0,0.00029898,7]
[374142976,1753229450668,-151.0,0.00029898,7]
[374142977,1753229450678,-158.034624,0.00029898,7]
[374142978,1753229450688,-158.034624,0.00029898,7]
[374142979,1753229450697,-645.473051,0.00029898,7]
[374142980,1753229450707,-645.473051,0.00029898,7]
[374142981,1753229450717,-5000.0,0.000299,2]
[374142982,1753229450728,-151.0,0.000299,7]
[374142983,1753229450738,-151.0,0.000299,7]
[374142984,1753229450748,-3500.0,0.000299,10]
[374142985,1753229450758,-477.0193291,0.000299,10]
[374142986,1753229450767,-150.0,0.00029906,2]
[374142987,1753229450777,-600.0,0.00029935,2]
[374142989,1753229450788,-311.357,0.00029955,2]
[374142991,1753229450798,-600.0,0.00029969,2]
[374142993,1753229450808,-189.889377,0.0002998,7]
[374142995,1753229450817,-151.0,0.0002998,7]
[374142997,1753229450830,-151.0,0.0002998,7]
[374142999,1753229450842,-151.0,0.0002998,7]
[374143001,1753229450852,-151.0,0.0002998,7]
[374143003,1753229450861,-151.0,0.0002998,7]
[374143006,1753229450871,-151.0,0.0002998,7]
[374143008,1753229450882,-151.0,0.0002998,7]
[374143010,1753229450892,-151.0,0.0002998,7]
[374143012,1753229450902,-233.194503,0.0002998,7]
[374143014,1753229450911,-233.194503,0.0002998,7]
[374143016,1753229450922,-170.691752,0.0002998,7]
[374143018,1753229450931,-172.22189,0.0002998,7]
[374143020,1753229450941,-172.22189,0.0002998,7]
[374143022,1753229450950,-703.932894,0.0002998,7]
[374143023,1753229450959,-225.255416,0.0002998,7]
[374143024,1753229450969,-225.255416,0.0002998,7]
[374143025,1753229450978,-151.0,0.0002998,7]
[374143026,1753229450987,-255.757631,0.0002998,7]
[374143027,1753229450996,-255.757631,0.0002998,7]
[374143028,1753229451006,-706.943573,0.0002998,7]
[374143029,1753229451015,-706.943573,0.0002998,7]
[374143030,1753229451024,-151.0,0.0002998,7]
[374143031,1753229451034,-151.0,0.0002998,7]
[374143033,1753229451045,-2584.319933,0.0002998,7]
[374143035,1753229451055,-2584.319931,0.0002998,7]
[374143037,1753229451064,-167.253945,0.0002998,7]
[374143039,1753229451073,-167.253945,0.0002998,7]
[374143041,1753229451083,-340.0836,0.00029984,2]
[374143043,1753229451092,-929.3,0.0002999,2]
[374143045,1753229451102,-815.92,0.0002999,2]
[374143047,1753229451111,-151.0,0.0002999,7]
[374143049,1753229451122,-299.511027,0.0002999,7]
[374143051,1753229451131,-151.0,0.0002999,7]
[374143053,1753229451141,-151.0,0.0002999,7]
[374143055,1753229451151,-151.0,0.0002999,7]
[374143057,1753229451160,-151.0,0.0002999,7]
[374143059,1753229451170,-151.0,0.0002999,7]
[374143061,1753229451180,-233.194503,0.0002999,7]
[374143063,1753229451189,-233.194503,0.0002999,7]
[374143066,1753229451199,-172.22189,0.0002999,7]
[374143068,1753229451209,-172.22189,0.0002999,7]
[374143070,1753229451219,-703.932894,0.0002999,7]
[374143072,1753229451228,-703.932891,0.0002999,7]
[374143074,1753229451238,-225.255416,0.0002999,7]
[374143076,1753229451247,-225.255408,0.0002999,7]
[374143078,1753229451257,-151.0,0.0002999,7]
[374143080,1753229451271,-255.757631,0.0002999,7]
[374143082,1753229451280,-255.757631,0.0002999,7]
[374143084,1753229451291,-706.943573,0.0002999,7]
[374143086,1753229451301,-706.943573,0.0002999,7]
[374143088,1753229451311,-151.0,0.0002999,7]
[374143090,1753229451321,-151.0,0.0002999,7]
[374143092,1753229451331,-151.0,0.0002999,7]
[374143094,1753229451340,-151.0,0.0002999,7]
[374143096,1753229451350,-158.034624,0.0002999,7]
[374143098,1753229451359,-158.034633,0.0002999,7]
[374143100,1753229451368,-645.473051,0.0002999,7]
[374143102,1753229451378,-645.473059,0.0002999,7]
[374143104,1753229451388,-814.69,0.00029992,2]
[374143106,1753229451398,-1169.4678824,0.00029994,15]
[374143108,1753229451408,-5320.26671171,0.00029999,3]
[374143111,1753229451418,-4505.38906323,0.0003,5]
[374143113,1753229451428,-29804.74804296,0.0003,7]
[374143115,1753229451438,-4135.61,0.0003,7]
[374143117,1753229451447,-1256.4432,0.0003,60]
[374143129,1753229451556,-151.0,0.0003,7]
[374143131,1753229451566,-151.0,0.0003,7]
[374143133,1753229451575,-151.0,0.0003,7]
[374143135,1753229451584,-151.0,0.0003,7]
[374143136,1753229451594,-151.0,0.0003,7]
[374143139,1753229451603,-151.0,0.0003,7]
[374143141,1753229451613,-277.057802,0.0003,7]
[374143142,1753229451623,-277.057802,0.0003,7]
[374143145,1753229451633,-151.0,0.0003,7]
[374143147,1753229451642,-151.0,0.0003,7]
[374143149,1753229451652,-151.0,0.0003,7]
[374143151,1753229451662,-151.0,0.0003,7]
[374143153,1753229451672,-151.0,0.0003,7]
[374143154,1753229451682,-152.19017,0.0003,7]
[374143157,1753229451691,-152.19017,0.0003,7]
[374143158,1753229451701,-151.0,0.0003,7]
[374143161,1753229451710,-233.194503,0.0003,7]
[374143163,1753229451720,-233.194503,0.0003,7]
[374143165,1753229451731,-172.22189,0.0003,7]
[374143167,1753229451741,-172.22189,0.0003,7]
[374143169,1753229451750,-151.0,0.0003,7]
[374143171,1753229451759,-151.0,0.0003,7]
[374143173,1753229451769,-151.0,0.0003,7]
[374143175,1753229451779,-151.0,0.0003,7]
[374143177,1753229451790,-255.757631,0.0003,7]
[374143179,1753229451801,-255.757631,0.0003,7]
[374143181,1753229451811,-706.943573,0.0003,7]
[374143183,1753229451821,-706.943573,0.0003,7]
[374143185,1753229451830,-440.133413,0.0003,7]
[374143187,1753229451839,-151.0,0.0003,7]
[374143189,1753229451849,-440.133405,0.0003,7]
[374143191,1753229451859,-839.57941635,0.0003,3]
[374143193,1753229451869,-210.93531616,0.0003,3]
[374143195,1753229451879,-160.0,0.0003,3]
[374143197,1753229451889,-2000.0,0.0003,5]
[374143199,1753229451899,-477.0193291,0.0003,3]
[374143201,1753229451908,-1000.0,0.00030003,2]
[374143203,1753229451918,-4496.15507419,0.00030004,2]
[374143205,1753229451927,-600.0,0.00030004,2]
[374143207,1753229451936,-150.0,0.00030006,2]
[374143209,1753229451946,-306.87471774,0.00030016,2]
[374143211,1753229451955,-801.45616841,0.00030036,2]
[374143213,1753229451964,-956.3282493,0.00030036,2]
[374143215,1753229451975,-1699.0,0.00030038,2]
[374143217,1753229451984,-151.0,0.00030052,7]
[374143219,1753229451994,-151.0,0.00030052,7]
[374143221,1753229452004,-151.0,0.00030052,7]
[374143223,1753229452013,-151.0,0.00030052,2]
[374143225,1753229452022,-153.555589,0.00030052,7]
[374143227,1753229452031,-151.0,0.00030052,7]
[374143229,1753229452041,-151.354774,0.00030052,7]
[374143231,1753229452051,-151.0,0.00030052,7]
[374143233,1753229452060,-151.0,0.00030052,7]
[374143236,1753229452070,-151.0,0.00030052,7]
[374143237,1753229452079,-262.949611,0.00030052,7]
[374143240,1753229452089,-185.775426,0.00030052,7]
[374143242,1753229452098,-185.775426,0.00030052,7]
[374143244,1753229452108,-151.0,0.00030055,7]
[374143246,1753229452118,-151.0,0.00030055,7]
[374143248,1753229452127,-284.914605,0.00030055,7]
[374143250,1753229452136,-151.0,0.00030055,7]
[374143252,1753229452146,-233.194503,0.00030055,7]
[374143254,1753229452155,-233.19451,0.00030055,7]
[374143256,1753229452165,-172.22189,0.00030055,7]
[374143257,1753229452175,-172.22189,0.00030055,7]
[374143259,1753229452185,-151.0,0.00030055,7]
[374143261,1753229452194,-255.757631,0.00030055,7]
[374143263,1753229452203,-255.757627,0.00030055,7]
[374143265,1753229452212,-706.943573,0.00030055,7]
[374143267,1753229452221,-706.943573,0.00030055,7]
[374143269,1753229452231,-151.0,0.00030055,7]
[374143271,1753229452240,-151.0,0.00030065,7]
[374143273,1753229452249,-172.22189,0.00030065,7]
[374143276,1753229452260,-172.221892,0.00030065,7]
[374143277,1753229452273,-706.943573,0.00030065,7]
[374143279,1753229452282,-706.943578,0.00030065,7]
[374143281,1753229452293,-339.0,0.00030067,2]
[374143283,1753229452303,-274.4795632,0.00030074,7]
[374143286,1753229452315,-151.0,0.00030074,7]
[374143287,1753229452325,-151.0,0.00030074,7]
[374143289,1753229452335,-152.312405,0.00030074,7]
[374143291,1753229452347,-152.072191,0.00030074,7]
[374143294,1753229452358,-151.0,0.00030074,7]
[374143296,1753229452367,-151.0,0.00030074,7]
[374143298,1753229452377,-151.0,0.00030074,7]
[374143300,1753229452387,-152.630608,0.00030074,7]
[374143302,1753229452397,-151.0,0.00030074,7]
[374143304,1753229452407,-151.0,0.00030074,7]
[374143306,1753229452416,-151.0,0.00030074,7]
[374143308,1753229452426,-166.264408,0.00030074,7]
[374143310,1753229452435,-151.0,0.00030074,7]
[374143312,1753229452445,-243.828067,0.00030074,7]
[374143314,1753229452454,-151.0,0.00030074,7]
[374143316,1753229452464,-151.0,0.00030074,7]
[374143318,1753229452474,-151.0,0.00030074,7]
[374143320,1753229452483,-388.200293,0.00030074,7]
[374143322,1753229452492,-388.200293,0.00030074,7]
[374143324,1753229452502,-151.0,0.00030074,7]
[374143326,1753229452511,-152.36213,0.00030074,7]
[374143328,1753229452521,-153.37225,0.00030074,7]
[374143330,1753229452531,-291.202951,0.00030074,2]
[374143332,1753229452541,-151.0,0.00030074,7]
[374143334,1753229452551,-151.0,0.00030074,7]
[374143336,1753229452560,-151.0,0.00030074,7]
[374143338,1753229452569,-151.0,0.00030074,7]
[374143340,1753229452579,-151.0,0.00030074,7]
[374143342,1753229452588,-152.468877,0.00030074,7]
[374143344,1753229452598,-151.0,0.00030074,7]
[374143346,1753229452607,-151.0,0.00030074,7]
[374143348,1753229452616,-151.0,0.00030074,7]
[374143350,1753229452625,-151.0,0.00030074,7]
[374143352,1753229452634,-151.0,0.00030074,7]
[374143354,1753229452644,-185.775426,0.00030074,7]
[374143356,1753229452653,-185.775426,0.00030074,7]
[374143358,1753229452663,-151.0,0.00030074,7]
[374143360,1753229452672,-151.0,0.00030074,7]
[374143362,1753229452682,-153.385152,0.00030074,7]
[374143364,1753229452691,-151.0,0.00030074,7]
[374143366,1753229452700,-151.0,0.00030074,7]
[374143368,1753229452710,-277.057802,0.00030074,7]
[374143370,1753229452720,-277.057802,0.00030074,7]
[374143372,1753229452730,-151.0,0.00030074,7]
[374143374,1753229452740,-151.0,0.00030074,7]
[374143376,1753229452749,-152.19017,0.00030074,7]
[374143378,1753229452758,-152.19017,0.00030074,7]
[374143380,1753229452768,-151.0,0.00030074,7]
[374143382,1753229452777,-151.671342,0.00030074,7]
[374143384,1753229452789,-151.0,0.00030075,7]
[374143386,1753229452798,-151.0,0.00030075,7]
[374143388,1753229452808,-151.0,0.00030075,7]
[374143390,1753229452818,-151.94804,0.00030075,7]
[374143392,1753229452827,-151.0,0.00030075,7]
[374143394,1753229452837,-151.0,0.00030075,7]
[374143396,1753229452846,-151.0,0.00030075,7]
[374143398,1753229452856,-151.0,0.0003008,7]
[374143400,1753229452865,-209.841575,0.0003008,7]
[374143401,1753229452875,-151.0,0.0003008,7]
[374143402,1753229452884,-151.0,0.0003008,7]
[374143403,1753229452894,-151.0,0.0003008,7]
[374143404,1753229452903,-277.057802,0.00030083,7]
[374143405,1753229452912,-277.057802,0.00030083,7]
[374143406,1753229452922,-151.0,0.00030083,7]
[374143407,1753229452931,-151.0,0.00030083,7]
[374143408,1753229452941,-152.19017,0.00030083,7]
[374143410,1753229452950,-152.19017,0.00030083,7]
[374143412,1753229452960,-151.0,0.00030083,7]
[374143414,1753229452969,-151.0,0.00030084,7]
[374143416,1753229452978,-151.0,0.00030084,7]
[374143418,1753229452989,-151.0,0.00030084,7]
[374143420,1753229452999,-151.0,0.00030084,7]
[374143422,1753229453008,-151.0,0.00030084,7]
[374143424,1753229453018,-151.0,0.00030084,7]
[374143426,1753229453027,-151.0,0.00030084,7]
[374143428,1753229453037,-151.0,0.00030084,7]
[374143430,1753229453047,-151.0,0.00030084,7]
[374143432,1753229453057,-151.0,0.00030084,7]
[374143434,1753229453066,-151.0,0.00030084,7]
[374143436,1753229453076,-151.0,0.00030084,7]
[374143438,1753229453086,-151.0,0.00030084,7]
[374143440,1753229453096,-151.0,0.00030084,7]
[374143442,1753229453106,-151.0,0.00030084,7]
[374143444,1753229453119,-151.0,0.00030084,7]
[374143446,1753229453129,-151.0,0.00030084,7]
[374143448,1753229453139,-184.958341,0.00030084,7]
[374143451,1753229453150,-151.0,0.00030084,7]
[374143453,1753229453159,-151.0,0.00030084,7]
[374143455,1753229453169,-388.200293,0.00030084,7]
[374143457,1753229453178,-388.200293,0.00030084,7]
[374143459,1753229453188,-151.0,0.00030084,7]
[374143461,1753229453198,-151.0,0.00030084,7]
[374143463,1753229453208,-151.0,0.00030084,7]
[374143465,1753229453218,-151.0,0.00030084,7]
[374143467,1753229453228,-287.458118,0.00030084,7]
[374143469,1753229453237,-151.0,0.00030084,7]
[374143471,1753229453247,-151.0,0.00030084,7]
[374143473,1753229453258,-151.0,0.00030084,7]
[374143475,1753229453272,-151.0,0.00030084,7]
[374143477,1753229453281,-151.0,0.00030084,7]
[374143479,1753229453291,-151.0,0.00030084,7]
[374143481,1753229453301,-151.0,0.00030084,7]
[374143483,1753229453311,-151.0,0.00030084,7]
[374143485,1753229453322,-185.775426,0.00030084,7]
[374143487,1753229453331,-185.775426,0.00030084,7]
[374143489,1753229453341,-185.775426,0.00030084,7]
[374143491,1753229453351,-185.775426,0.00030084,7]
[374143494,1753229453360,-151.0,0.00030084,7]
[374143496,1753229453370,-151.0,0.00030084,7]
[374143498,1753229453380,-151.0,0.00030084,7]
[374143500,1753229453390,-151.0,0.00030084,7]
[374143502,1753229453399,-277.057802,0.00030084,7]
[374143504,1753229453408,-277.057802,0.00030084,7]
[374143506,1753229453418,-151.0,0.00030084,7]
[374143508,1753229453428,-151.0,0.00030084,7]
[374143510,1753229453438,-152.19017,0.00030084,7]
[374143512,1753229453449,-152.19017,0.00030084,7]
[374143514,1753229453458,-151.0,0.00030084,7]
[374143516,1753229453468,-151.0,0.00030085,7]
[374143518,1753229453478,-152.168406,0.00030085,7]
[374143520,1753229453488,-151.0,0.00030085,7]
[374143522,1753229453498,-151.0,0.00030085,7]
[374143524,1753229453508,-151.0,0.00030085,7]
[374143526,1753229453518,-151.0,0.00030085,7]
[374143528,1753229453528,-388.200293,0.00030085,7]
[374143530,1753229453537,-388.200293,0.00030085,7]
[374143532,1753229453548,-151.0,0.00030085,7]
[374143534,1753229453558,-151.0,0.00030085,7]
[374143536,1753229453568,-151.0,0.00030085,7]
[374143539,1753229453578,-151.0,0.00030089,7]
[374143541,1753229453588,-151.0,0.0003009,7]
[374143543,1753229453598,-151.0,0.0003009,7]
[374143545,1753229453609,-151.0,0.0003009,7]
[374143547,1753229453619,-285.66102,0.0003009,7]
[374143549,1753229453629,-151.0,0.0003009,7]
[374143551,1753229453640,-151.0,0.0003009,7]
[374143553,1753229453650,-151.0,0.0003009,7]
[374143555,1753229453660,-151.304611,0.0003009,7]
[374143557,1753229453670,-151.0,0.0003009,7]
[374143559,1753229453680,-151.0,0.0003009,7]
[374143561,1753229453690,-388.200293,0.0003009,7]
[374143564,1753229453700,-388.200293,0.0003009,7]
[374143566,1753229453710,-151.0,0.0003009,7]
[374143568,1753229453720,-151.0,0.0003009,7]
[374143570,1753229453730,-188.573186,0.0003009,7]
[374143572,1753229453740,-151.0,0.0003009,7]
[374143574,1753229453750,-151.0,0.0003009,7]
[374143576,1753229453760,-151.0,0.0003009,7]
[374143578,1753229453770,-151.0,0.0003009,7]
[374143580,1753229453780,-185.775426,0.0003009,7]
[374143582,1753229453789,-185.775426,0.0003009,7]
[374143584,1753229453799,-151.0,0.0003009,7]
[374143586,1753229453809,-151.0,0.0003009,7]
[374143588,1753229453819,-277.057802,0.0003009,7]
[374143590,1753229453829,-277.057802,0.0003009,7]
[374143592,1753229453839,-277.057802,0.0003009,7]
[374143594,1753229453849,-277.057802,0.0003009,7]
[374143596,1753229453859,-151.0,0.0003009,7]
[374143597,1753229453868,-151.0,0.0003009,7]
[374143598,1753229453878,-239.704885,0.0003009,7]
[374143599,1753229453888,-152.19017,0.0003009,7]
[374143600,1753229453898,-152.19017,0.0003009,7]
[374143601,1753229453908,-152.19017,0.0003009,7]
[374143602,1753229453918,-152.19017,0.0003009,7]
[374143603,1753229453929,-278.42975,0.0003009,7]
[374143604,1753229453939,-504.24206619,0.00030094,5]
[374143605,1753229453948,-151.0,0.00030094,7]
[374143606,1753229453958,-151.0,0.00030094,7]
[374143607,1753229453968,-151.0,0.00030094,7]
[374143608,1753229453979,-151.0,0.00030094,7]
[374143609,1753229453989,-287.423293,0.00030094,7]
[374143610,1753229453999,-185.775426,0.00030094,7]
[374143611,1753229454009,-185.775426,0.00030094,7]
[374143612,1753229454019,-151.0,0.00030095,7]
[374143613,1753229454029,-151.0,0.00030095,7]
[374143614,1753229454040,-151.0,0.00030095,7]
[374143615,1753229454049,-388.200293,0.00030095,7]
[374143616,1753229454059,-388.200293,0.00030095,7]
[374143617,1753229454069,-214.628637,0.00030095,7]
[374143618,1753229454079,-152.0,0.00030095,7]
[374143619,1753229454089,-152.0,0.00030095,7]
[374143620,1753229454099,-152.0,0.00030095,7]
[374143621,1753229454108,-152.0,0.00030095,7]
[374143622,1753229454118,-1210.0,0.00030095,7]
[374143623,1753229454128,-490.05138225,0.00030095,7]
[374143624,1753229454138,-152.0,0.00030095,7]
[374143625,1753229454148,-152.0,0.00030095,7]
[374143626,1753229454158,-152.0,0.00030095,7]
[374143627,1753229454168,-153.0,0.00030095,7]
[374143628,1753229454178,-152.0,0.00030095,7]
[374143629,1753229454188,-153.0,0.00030095,7]
[374143630,1753229454198,-154.0,0.00030095,7]
[374143631,1753229454208,-152.0,0.00030095,7]
[374143632,1753229454218,-153.0,0.00030095,7]
[374143633,1753229454228,-152.0,0.00030095,7]
[374143634,1753229454238,-152.0,0.00030095,7]
[374143635,1753229454248,-152.0,0.00030095,7]
[374143636,1753229454258,-153.0,0.00030095,7]
[374143637,1753229454271,-152.0,0.00030095,7]
[374143638,1753229454281,-153.0,0.00030095,7]
[374143639,1753229454292,-152.0,0.00030095,7]
[374143640,1753229454302,-151.0,0.00030095,7]
[374143641,1753229454314,-151.0,0.00030095,7]
[374143642,1753229454324,-151.0,0.00030095,7]
[374143643,1753229454334,-151.0,0.00030095,7]
[374143644,1753229454346,-152.0,0.00030095,7]
[374143645,1753229454357,-152.0,0.00030095,7]
[374143646,1753229454367,-152.0,0.00030095,7]
[374143647,1753229454377,-152.0,0.00030095,7]
[374143648,1753229454387,-152.0,0.00030095,7]
[374143649,1753229454397,-192.86466589,0.00030095,7]
[374143650,1753229454407,-202.46620884,0.00030095,7]
[374143651,1753229454417,-1210.0,0.00030095,7]
[374143652,1753229454427,-1210.0,0.00030095,7]
[374143653,1753229454437,-1210.0,0.00030095,7]
[374143654,1753229454448,-1210.0,0.00030095,7]
[374143655,1753229454458,-1210.0,0.00030095,7]
[374143656,1753229454468,-1210.0,0.00030095,7]
[374143657,1753229454478,-153.0,0.00030095,7]
[374143658,1753229454488,-153.0,0.00030095,7]
[374143659,1753229454498,-153.0,0.00030095,7]
[374143660,1753229454508,-153.0,0.00030095,7]
[374143661,1753229454518,-153.0,0.00030095,7]
[374143662,1753229454528,-153.0,0.00030095,7]
[374143663,1753229454538,-153.0,0.00030095,7]
[374143664,1753229454549,-153.0,0.00030095,7]
[374143665,1753229454559,-153.0,0.00030095,7]
[374143666,1753229454569,-153.0,0.00030095,7]
[374143667,1753229454580,-153.0,0.00030095,7]
[374143668,1753229454590,-153.0,0.00030095,7]
[374143669,1753229454600,-153.0,0.00030095,7]
[374143670,1753229454610,-153.0,0.00030095,7]
[374143671,1753229454620,-153.0,0.00030095,7]
[374143672,1753229454630,-153.0,0.00030095,7]
[374143673,1753229454641,-153.0,0.00030095,7]
[374143674,1753229454651,-153.0,0.00030095,7]
[374143675,1753229454661,-153.0,0.00030095,7]
[374143676,1753229454670,-1210.0,0.00030095,7]
[374143677,1753229454680,-1210.0,0.00030095,7]
[374143678,1753229454690,-153.0,0.00030095,7]
[374143679,1753229454701,-1210.0,0.00030095,7]
[374143680,1753229454711,-153.0,0.00030095,7]
[374143681,1753229454721,-1210.0,0.00030095,7]
[374143682,1753229454732,-153.0,0.00030095,7]
[374143683,1753229454742,-1210.0,0.00030095,7]
[374143684,1753229454752,-153.0,0.00030095,7]
[374143685,1753229454762,-153.0,0.00030095,7]
[374143686,1753229454772,-153.0,0.00030095,7]
[374143687,1753229454782,-1210.0,0.00030095,7]
[374143688,1753229454792,-153.0,0.00030095,7]
[374143689,1753229454802,-1210.0,0.00030095,7]
[374143690,1753229454811,-153.0,0.00030095,7]
[374143691,1753229454821,-1210.0,0.00030095,7]
[374143692,1753229454831,-153.0,0.00030095,7]
[374143693,1753229454841,-1210.0,0.00030095,7]
[374143694,1753229454851,-1210.0,0.00030095,7]
[374143695,1753229454861,-1210.0,0.00030095,7]
[374143696,1753229454871,-1210.0,0.00030095,7]
[374143697,1753229454881,-1210.0,0.00030095,7]
[374143698,1753229454891,-1210.0,0.00030095,7]
[374143699,1753229454901,-1210.0,0.00030095,7]